fUSD/lending_fUSD_20251112
["ID","MTS","AMOUNT","RATE_DAILY","PERIOD"]
[393710246,1762937482058,-1350.42,0.00039178,20]
[393710247,1762937482068,-500.0,0.00039178,20]
[393710248,1762937482077,-500.0,0.00039178,20]
[393710249,1762937482087,-815.26,0.00039178,20]
[393710250,1762937482097,-292.44481894,0.00039178,20]
[393710251,1762937482106,-500.0,0.00039178,20]
[393710252,1762937482116,-603.83,0.00039178,20]
[393710253,1762937482127,-815.26,0.00039178,20]
[393710254,1762937482138,-500.0,0.00039178,20]
[393710255,1762937482147,-500.0,0.00039178,20]
[393710256,1762937482156,-1350.42,0.00039178,20]
[393710257,1762937482166,-603.83,0.00039178,20]
[393710258,1762937482175,-331.11689308,0.00039178,20]
[393710259,1762937482185,-815.26,0.00039178,20]
[393710260,1762937482194,-500.0,0.00039178,20]
[393710261,1762937482205,-500.0,0.00039178,20]
[393710262,1762937482215,-603.83,0.00039178,20]
[393710263,1762937482224,-815.26,0.00039178,20]
[393710264,1762937482235,-500.0,0.00039178,20]
[393710265,1762937482245,-500.0,0.00039178,20]
[393710266,1762937482254,-815.26,0.00039178,20]
[393710267,1762937482264,-500.0,0.00039178,20]
[393710268,1762937482273,-500.0,0.00039178,20]
[393710269,1762937482283,-815.26,0.00039178,20]
[393710270,1762937482294,-500.0,0.00039178,20]
[393710271,1762937482304,-500.0,0.00039178,20]
[393710272,1762937482314,-500.0,0.00039178,20]
[393710273,1762937482324,-299.10526522,0.00039178,20]
[393710274,1762937482334,-500.0,0.00039178,20]
[393710275,1762937482344,-339.44013246,0.00039178,20]
[393710276,1762937482353,-500.0,0.00039178,20]
[393710277,1762937482363,-500.0,0.00039178,20]
[393710278,1762937482372,-500.0,0.00039178,20]
[393710279,1762937482382,-315.2657751,0.00039178,20]
[393710280,1762937482392,-500.0,0.00039178,20]
[393710281,1762937482402,-500.0,0.00039178,20]
[393710282,1762937482411,-500.0,0.00039178,20]
[393710283,1762937482421,-500.0,0.00039178,20]
[393710284,1762937482430,-168.54126268,0.00039178,20]
[393710285,1762937482441,-500.0,0.00039178,20]
[393710286,1762937482450,-500.0,0.00039178,20]
[393710287,1762937482459,-500.0,0.00039178,20]
[393710288,1762937482469,-500.0,0.00039178,20]
[393710289,1762937482479,-536.90786576,0.00039178,20]
[393710290,1762937482488,-500.0,0.00039178,20]
[393710291,1762937482498,-500.0,0.00039178,20]
[393710292,1762937482508,-500.0,0.00039178,20]
[393710293,1762937482518,-500.0,0.00039178,20]
[393710294,1762937482527,-367.0368248,0.00039178,20]
[393710295,1762937482536,-500.0,0.00039178,20]
[393710296,1762937482546,-381.2030952,0.00039178,20]
[393710297,1762937482555,-500.0,0.00039178,120]
[393710298,1762937482564,-881.99,0.00039178,20]
[393710299,1762937482574,-500.0,0.00039178,120]
[393710300,1762937482587,-881.99,0.00039178,20]
[393710301,1762937482597,-500.0,0.00039178,120]
[393710302,1762937482606,-881.99,0.00039178,20]
[393710303,1762937482616,-500.0,0.00039178,20]
[393710304,1762937482626,-881.99,0.00039178,20]
[393710305,1762937482636,-336.16828807,0.00039178,20]
[393710306,1762937482646,-500.0,0.00039178,20]
[393710307,1762937482658,-881.99,0.00039178,20]
[393710308,1762937482668,-500.0,0.00039178,20]
[393710309,1762937482678,-881.99,0.00039178,20]
[393710310,1762937482688,-529.81329583,0.00039178,20]
[393710311,1762937482698,-500.0,0.00039178,20]
[393710312,1762937482709,-881.99,0.00039178,20]
[393710313,1762937482719,-152.71197588,0.00039178,20]
[393710314,1762937482729,-881.99,0.00039178,20]
[393710315,1762937482739,-881.99,0.00039178,20]
[393710316,1762937482749,-752.18,0.00039178,20]
[393710317,1762937482759,-881.99,0.00039178,20]
[393710318,1762937482768,-500.0,0.00039178,20]
[393710319,1762937482778,-500.0,0.00039178,20]
[393710320,1762937482788,-650.5,0.00039178,20]
[393710321,1762937482798,-752.18,0.00039178,20]
[393710322,1762937482808,-500.0,0.00039178,20]
[393710323,1762937482817,-276.66319278,0.00039178,20]
[393710324,1762937482828,-881.99,0.00039178,20]
[393710325,1762937482839,-650.5,0.00039178,20]
[393710326,1762937482849,-752.18,0.00039178,20]
[393710327,1762937482859,-1081.81,0.00039178,20]
[393710328,1762937482869,-881.99,0.00039178,20]
[393710329,1762937482878,-123.57920687,0.00039178,20]
[393710330,1762937482913,-526.92079313,0.00039178,20]
[393710331,1762937482923,-19.38858808,0.00039178,20]
[393710332,1762937482935,-309.21102072,0.00039178,20]
[393710340,1762938266160,-312.13110644,0.00030137,120]
[393710359,1762938631371,-198.18,0.00034815,2]
[393710361,1762938631382,-301.82,0.00034976,2]
[393710363,1762938631424,-176.74668374,0.00034976,2]
[393710364,1762938631434,-804.65479871,0.00035005,2]
[393710365,1762938631479,-662.09520129,0.00035005,2]
[393710366,1762938631488,-351.18125993,0.0003528,30]
[393710367,1762938631536,-148.81874007,0.0003528,30]
[393710368,1762938631545,-345.0,0.00036027,2]
[393710369,1762938631555,-738.72370408,0.00036234,30]
[393710370,1762938631566,-659.16409751,0.00036234,30]
[393710371,1762938631575,-500.0,0.00036438,2]
[393710372,1762938631585,-5.50617889,0.00036466,2]
[393710373,1762938631596,-244.49382111,0.00036466,2]
[393710374,1762938631605,-146.73704563,0.00036471,2]
[393710375,1762938631616,-3.26295437,0.00036471,2]
[393710376,1762938631625,-500.0,0.00036917,30]
[393710377,1762938631634,-399.39291984,0.00037305,2]
[393710378,1762938631645,-1100.7542825,0.00037305,2]
[393710436,1762938637393,-274.2567619,0.00037305,2]
[393710437,1762938637403,-156.39134366,0.0003751,60]
[393710438,1762938637414,-810.0,0.00037556,3]
[393710439,1762938637424,-900.0,0.00037557,7]
[393710440,1762938637433,-500.0,0.00037557,7]
[393710441,1762938637443,-900.0,0.00037557,7]
[393710442,1762938637452,-200.0,0.00037622,2]
[393710443,1762938637461,-158.98,0.00037689,2]
[393710444,1762938637470,-999.0,0.00037717,3]
[393710445,1762938637479,-250.0,0.00037768,2]
[393710446,1762938637489,-1178.0,0.000378,2]
[393710447,1762938637498,-341.0,0.00038,30]
[393710448,1762938637508,-5000.0,0.00038108,2]
[393710449,1762938637517,-1000.0,0.00038121,2]
[393710450,1762938637526,-156.47,0.00038151,120]
[393710451,1762938637537,-500.0,0.000382,30]
[393710452,1762938637546,-500.0,0.000382,30]
[393710453,1762938637555,-500.0,0.000382,30]
[393710455,1762938637566,-2570.07,0.00038238,7]
[393710456,1762938637575,-471.69608911,0.00038313,2]
[393710457,1762938637584,-1957.68069779,0.00038356,120]
[393710458,1762938637595,-900.0,0.00038379,7]
[393710459,1762938637604,-500.0,0.00038379,7]
[393710461,1762938637613,-900.0,0.00038379,7]
[393710462,1762938637623,-168.0,0.00038605,2]
[393710463,1762938637632,-403.723,0.00038609,52]
[393710464,1762938637642,-647.99832703,0.00038609,2]
[393710465,1762938637651,-341.0,0.0003863,90]
[393710466,1762938637660,-151.0,0.00038668,7]
[393710468,1762938637670,-151.0,0.00038668,7]
[393710469,1762938637679,-151.0,0.00038668,7]
[393710470,1762938637688,-151.0,0.00038668,7]
[393710471,1762938637697,-151.0,0.00038668,7]
[393710472,1762938637913,-151.0,0.00038668,7]
[393710473,1762938637923,-151.0,0.00038668,7]
[393710474,1762938637933,-151.0,0.00038668,7]
[393710475,1762938637943,-151.0,0.00038668,7]
[393710476,1762938637952,-151.0,0.00038668,7]
[393710477,1762938637961,-151.0,0.00038668,7]
[393710478,1762938637971,-151.0,0.00038668,7]
[393710479,1762938637981,-151.0,0.00038668,7]
[393710480,1762938637992,-194.6588664,0.00038668,7]
[393710481,1762938638001,-535.12863588,0.00038735,30]
[393710482,1762938638011,-2076.16102609,0.0003879,2]
[393710483,1762938638023,-2423.42969982,0.0003879,2]
[393710484,1762938638034,-563.88063076,0.00038799,2]
[393710485,1762938638044,-1000.0,0.000388,7]
[393710486,1762938638055,-200.0,0.00038865,20]
[393710487,1762938638066,-150.0,0.00038877,2]
[393710488,1762938638077,-169.383,0.00038909,2]
[393710489,1762938638087,-161.861,0.00038909,2]
[393710490,1762938638097,-150.242,0.00038909,2]
[393710491,1762938638110,-1317.0,0.00038909,2]
[393710492,1762938638122,-2453.56821619,0.00038909,2]
[393710493,1762938638134,-480.66000001,0.00038909,2]
[393710494,1762938639511,-492.7717838,0.00038909,2]
[393710495,1762938639522,-574.0,0.00038909,2]
[393710496,1762938639532,-284.2737855,0.00038909,2]
[393710497,1762938639544,-323.7262145,0.00038909,2]
[393710498,1762938639554,-367.44113179,0.00038909,2]
[393710499,1762938639571,-453.55886821,0.00038909,2]
[393710500,1762938639581,-54.81631718,0.00038909,2]
[393710501,1762938639593,-1542.18368282,0.00038909,2]
[393710502,1762938639603,-630.81631718,0.00038909,2]
[393710503,1762938639646,-310.53034242,0.00038909,2]
[393710504,1762938639662,-332.6533404,0.00038909,2]
[393710505,1762938639672,-813.0,0.00038909,2]
[393710506,1762938639680,-20.79244684,0.00038909,2]
[393710507,1762938639691,-582.27999992,0.00038909,2]
[393710513,1762938642629,-151.0,0.00033873,2]
[393710514,1762938642639,-560.0,0.00038909,2]
[393710515,1762938642649,-2143.0,0.00038909,2]
[393710516,1762938642658,-4040.67494357,0.00038909,2]
[393710517,1762938642670,-490.0,0.00038909,2]
[393710525,1762938645920,-347.00000008,0.00038909,2]
[393710526,1762938645942,-45.47707578,0.00038909,2]
[393710527,1762938645976,-1558.84798057,0.00038909,2]
[393710528,1762938645986,-1659.7785553,0.00038939,2]
[393710529,1762938645996,-584.98775817,0.00038978,2]
[393710530,1762938646006,-558.15319144,0.00038978,2]
[393710531,1762938646015,-584.98775811,0.00038992,2]
[393710532,1762938646026,-98.23326301,0.00038992,2]
[393710533,1762938646044,-347.77849297,0.00038992,2]
[393710534,1762938646059,-112.14143539,0.00038992,2]
[393710535,1762938646069,-631.2904982,0.00039,120]
[393710536,1762938646079,-1267.95637089,0.00039,4]
[393710537,1762938646088,-1000.0,0.00039,7]
[393710538,1762938646097,-584.98775811,0.00039007,2]
[393710539,1762938646106,-584.98775811,0.00039021,2]
[393710540,1762938646116,-584.98775811,0.00039036,2]
[393710541,1762938646129,-584.98775811,0.0003905,2]
[393710542,1762938646139,-151.0,0.00039054,2]
[393710543,1762938646149,-151.0,0.00039054,2]
[393710544,1762938646158,-151.0,0.00039054,2]
[393710545,1762938646169,-163.7956631,0.00039065,2]
[393710556,1762938654250,158.1,0.00019456,2]
[393710564,1762939319318,153.36,0.00013699,2]
[393710565,1762939319530,153.36,0.00022505,2]
[393710569,1762939561764,527.77697294,0.00022,2]
[393710572,1762939684219,250.0,0.00021,2]
[393710579,1762939808781,195.0,0.000275,120]
[393710590,1762939831634,-841.29844284,0.00025,2]
[393710591,1762939831646,-21.91572793,0.00025,2]
[393710592,1762939831654,-250.0,0.00025,2]
[393710593,1762939831663,-211.18427007,0.00027,2]
[393710594,1762939831674,-288.81572993,0.00027,2]
[393710595,1762939831684,-500.0,0.000297,2]
[393710596,1762939831693,-183.96594611,0.0003046,2]
[393710597,1762939831703,-819.13831389,0.0003046,2]
[393710598,1762939831712,-500.0,0.00031,3]
[393710599,1762939831722,-500.0,0.000313,2]
[393710600,1762939831731,-153.36,0.00031311,2]
[393710601,1762939831740,-773.5966597,0.0003146,2]
[393710602,1762939831751,-229.5076103,0.0003146,2]
[393710603,1762939831760,-420.1965292,0.00032,3]
[393710604,1762939831771,-79.8034708,0.00032,3]
[393710605,1762939831782,-171.0,0.0003232,2]
[393710606,1762939831791,-127.77744301,0.0003246,2]
[393710607,1762939831803,-875.32682699,0.0003246,2]
[393710608,1762939831812,-71.28442808,0.00033,3]
[393710609,1762939831823,-428.71557192,0.00033,3]
[393710610,1762939831832,-37.27975658,0.0003346,2]
[393710611,1762939831846,-965.82450342,0.0003346,2]
[393710612,1762939831859,-1003.10427,0.0003446,2]
[393710613,1762939831868,-171.884063,0.0003452,20]
[393710614,1762939831877,-171.884063,0.0003452,20]
[393710615,1762939831887,-171.884063,0.0003452,20]
[393710616,1762939831896,-171.884063,0.0003452,20]
[393710617,1762939831906,-152.0,0.00034745,3]
[393710618,1762939831916,-155.110204,0.0003526,20]
[393710619,1762939831926,-171.884063,0.0003526,20]
[393710620,1762939831935,-171.884063,0.0003526,20]
[393710621,1762939831945,-171.884063,0.0003526,20]
[393710622,1762939831954,-171.884063,0.0003526,20]
[393710623,1762939831963,-171.884063,0.0003526,20]
[393710624,1762939831972,-171.884063,0.0003526,20]
[393710625,1762939831982,-152.6515,0.0003526,20]
[393710626,1762939831991,-162.0,0.0003538,2]
[393710627,1762939832000,-1003.10427,0.0003546,2]
[393710628,1762939832009,-500.0,0.00036,6]
[393710630,1762939832025,-346.97,0.00036551,120]
[393710632,1762939832040,-152.0,0.00036684,4]
[393710633,1762939832050,-1199.99,0.00036754,30]
[393710634,1762939832059,-150.0,0.00036775,2]
[393710635,1762939832068,-674.31,0.00037239,2]
[393710637,1762939832077,-700.0,0.00037557,7]
[393710639,1762939832086,-500.0,0.00037557,7]
[393710640,1762939832097,-800.0,0.00037557,7]
[393710641,1762939832108,-155.679,0.00037706,30]
[393710642,1762939832117,-256.0,0.00038,30]
[393710643,1762939832125,-307.79,0.00038029,2]
[393710644,1762939832135,-700.0,0.00038379,7]
[393710645,1762939832144,-800.0,0.00038379,7]
[393710646,1762939832153,-500.0,0.00038384,2]
[393710647,1762939832163,-416.0,0.00038392,120]
[393710648,1762939832172,-177.04,0.00038493,2]
[393710649,1762939832181,-181.0,0.00038538,2]
[393710650,1762939832191,-416.0,0.00038578,2]
[393710651,1762939832200,-549.74,0.00038603,2]
[393710652,1762939832210,-437.75,0.00038603,2]
[393710653,1762939832219,-851.03,0.00038603,2]
[393710654,1762939832228,-1207.25,0.00038603,2]
[393710655,1762939832238,-356.19,0.00038603,2]
[393710656,1762939832248,-1207.25,0.00038603,2]
[393710657,1762939832257,-723.17,0.00038603,2]
[393710658,1762939832266,-152.0,0.00038622,5]
[393710659,1762939832277,-256.0,0.0003863,90]
[393710660,1762939832286,-674.31,0.00038635,2]
[393710661,1762939832296,-337.89562258,0.000387,29]
[393710662,1762939832307,-1162.10437742,0.000387,29]
[393710663,1762939832317,-1000.0,0.000388,7]
[393710664,1762939832326,-896.32361821,0.000388,60]
[393710665,1762939832336,-1568.441,0.00038814,2]
[393710666,1762939832345,-258.633,0.00038814,2]
[393710667,1762939832355,-219.988,0.00038814,2]
[393710668,1762939832364,-659.078,0.00038814,2]
[393710669,1762939832373,-585.927,0.00038814,2]
[393710670,1762939832382,-906.0,0.00038814,2]
[393710671,1762939832391,-2143.0,0.00038814,2]
[393710672,1762939832407,-1317.0,0.00038814,2]
[393710673,1762939832417,-180.393,0.00038814,2]
[393710674,1762939832426,-151.0,0.00038819,7]
[393710675,1762939832436,-151.0,0.00038819,7]
[393710676,1762939832445,-151.0,0.00038819,7]
[393710677,1762939832454,-151.0,0.00038819,7]
[393710678,1762939832463,-151.0,0.00038819,7]
[393710679,1762939832472,-151.0,0.00038819,7]
[393710680,1762939832481,-151.0,0.00038819,7]
[393710681,1762939832491,-151.0,0.00038819,7]
[393710682,1762939832500,-151.0,0.00038819,7]
[393710683,1762939832510,-151.0,0.00038819,7]
[393710684,1762939832519,-151.0,0.00038819,7]
[393710685,1762939832531,-151.0,0.00038819,7]
[393710686,1762939832541,-151.0,0.00038819,7]
[393710687,1762939832553,-151.0,0.00038819,7]
[393710688,1762939832563,-151.0,0.00038819,7]
[393710689,1762939832572,-291.1449817,0.0003884,50]
[393710690,1762939832581,-200.0,0.00038865,20]
[393710691,1762939832591,-469.00226966,0.00038878,2]
[393710692,1762939832600,-254.73973159,0.00038878,2]
[393710693,1762939832609,-169.12468377,0.00038878,2]
[393710694,1762939832619,-1451.0,0.000389,7]
[393710695,1762939832628,-309.09538691,0.000389,31]
[393710696,1762939832642,-469.00226959,0.00038904,2]
[393710697,1762939832651,-254.73973157,0.00038904,2]
[393710698,1762939832660,-823.3711141,0.00038906,2]
[393710699,1762939832670,-186.872,0.00038906,53]
[393710700,1762939832679,-2061.8245262,0.00038906,2]
[393710701,1762939832688,-1862.1848382,0.00038906,2]
[393710702,1762939832697,-469.00226959,0.00038929,2]
[393710703,1762939832707,-254.73973157,0.00038929,2]
[393710704,1762939832716,-469.00226959,0.00038955,2]
[393710705,1762939832725,-254.73973157,0.00038955,2]
[393710706,1762939832734,-2206.7756,0.00038959,10]
[393710707,1762939832743,-875.66209486,0.00038967,2]
[393710708,1762939832752,-1419.6887739,0.00038968,4]
[393710709,1762939832775,-408.2574532,0.00038968,4]
[393710710,1762939832788,-323.3292545,0.00038968,4]
[393710711,1762939832799,-4211.2602135,0.00038968,4]
[393710712,1762939832809,-7653.97832644,0.00038968,4]
[393710713,1762939832818,-233.0,0.00038968,2]
[393710714,1762939832827,-233.0,0.00038968,2]
[393710715,1762939832836,-233.0,0.00038968,2]
[393710716,1762939832845,-233.0,0.00038968,2]
[393710717,1762939832855,-163.51,0.00038968,2]
[393710718,1762939832865,-500.0,0.00038969,15]
[393710719,1762939832874,-500.0,0.00038969,15]
[393710720,1762939832883,-500.0,0.00038969,15]
[393710721,1762939832892,-500.0,0.00038973,5]
[393710722,1762939832901,-500.0,0.00038973,5]
[393710723,1762939832910,-180.94,0.00038974,30]
[393710724,1762939832919,-1098.05342992,0.00038977,30]
[393710725,1762939832929,-72243.96032348,0.00038978,2]
[393710726,1762939832939,-21141.85133084,0.00038978,2]
[393710729,1762939837521,-500.0,0.00038969,15]
[393710730,1762939837531,-395.02570764,0.00038969,15]
[393710733,1762939837737,-104.97429236,0.00038969,15]
[393710735,1762939837746,-500.0,0.00038969,15]
[393710736,1762939837755,-500.0,0.00038969,15]
[393710737,1762939837764,-500.0,0.00038969,15]
[393710738,1762939837773,-635.0,0.00038969,15]
[393710739,1762939837783,-500.0,0.00038969,15]
[393710741,1762939837792,-500.0,0.00038969,15]
[393710743,1762939837801,-500.0,0.00038969,15]
[393710745,1762939837810,-500.0,0.00038969,15]
[393710746,1762939837819,-500.0,0.00038969,15]
[393710748,1762939837828,-500.0,0.00038969,15]
[393710750,1762939837837,-500.0,0.00038969,15]
[393710751,1762939837846,-500.0,0.00038969,15]
[393710752,1762939837855,-500.0,0.00038969,15]
[393710753,1762939837864,-500.0,0.00038969,15]
[393710754,1762939837873,-500.0,0.00038969,15]
[393710756,1762939837882,-500.0,0.00038969,15]
[393710758,1762939837891,-500.0,0.00038969,15]
[393710759,1762939837900,-500.0,0.00038969,15]
[393710760,1762939837910,-500.0,0.00038969,15]
[393710761,1762939837919,-500.0,0.00038969,15]
[393710762,1762939837928,-500.0,0.00038969,15]
[393710763,1762939837937,-500.0,0.00038969,15]
[393710764,1762939837946,-500.0,0.00038969,15]
[393710765,1762939837955,-500.0,0.00038969,15]
[393710766,1762939837964,-500.0,0.00038969,15]
[393710767,1762939837973,-500.0,0.00038969,15]
[393710768,1762939837982,-500.0,0.00038969,15]
[393710769,1762939837991,-500.0,0.00038969,15]
[393710770,1762939838000,-500.0,0.00038969,15]
[393710771,1762939838009,-500.0,0.00038969,15]
[393710772,1762939838019,-500.0,0.00038969,15]
[393710773,1762939838028,-500.0,0.00038969,15]
[393710774,1762939838038,-500.0,0.00038969,15]
[393710775,1762939838047,-500.0,0.00038969,15]
[393710776,1762939838056,-500.0,0.00038969,15]
[393710777,1762939838066,-500.0,0.00038969,15]
[393710778,1762939838075,-500.0,0.00038969,15]
[393710779,1762939838086,-500.0,0.00038969,15]
[393710780,1762939838097,-500.0,0.00038969,15]
[393710781,1762939838106,-500.0,0.00038969,15]
[393710782,1762939838116,-500.0,0.00038969,15]
[393710783,1762939838125,-500.0,0.00038969,15]
[393710784,1762939838135,-428.29027663,0.00038969,15]
[393710785,1762939838145,-500.0,0.00038969,15]
[393710786,1762939838154,-500.0,0.00038969,15]
[393710787,1762939838164,-500.0,0.00038969,15]
[393710788,1762939838174,-44011.84946245,0.00038978,2]
[393710789,1762939838186,-42878.51202578,0.00038978,2]
[393710790,1762939838202,-2621.2471762,0.00038978,2]
[393710791,1762939838216,-30516.86984033,0.00038978,2]
[393710792,1762939838231,-5739.18585998,0.00038978,2]
[393710793,1762939838245,-28057.1412,0.00038978,2]
[393710794,1762939839645,-6373.00036514,0.00038814,2]
[393710795,1762939839668,-108.99963486,0.00038814,2]
[393710796,1762939839677,-99797.01553655,0.00038978,2]
[393710797,1762939839691,-11600.39812043,0.00038978,2]
[393710808,1762939842656,-10000.0,0.00038978,2]
[393710809,1762939842710,-1161.48,0.00038978,2]
[393710810,1762939842765,-419.8993321,0.00038978,2]
[393710811,1762939842926,-49810.58979186,0.00038978,2]
[393710812,1762939842935,-282.6623,0.00038978,2]
[393710813,1762939842945,-168.70975197,0.00038979,15]
[393710814,1762939842954,-213.49049213,0.00038979,15]
[393710815,1762939842963,-395.13150229,0.00038979,15]
[393710816,1762939842972,-500.0,0.00038979,15]
[393710817,1762939842981,-3826.98916322,0.0003898,4]
[393710819,1762939842991,-469.00226959,0.0003898,2]
[393710822,1762939843001,-254.73973157,0.0003898,2]
[393710824,1762939843010,-166.0,0.00038989,7]
[393710826,1762939843019,-166.0,0.00038989,7]
[393710828,1762939843028,-166.0,0.00038989,7]
[393710830,1762939843039,-166.0,0.00038989,7]
[393710831,1762939843048,-166.0,0.00038989,7]
[393710832,1762939843057,-166.0,0.00038989,7]
[393710833,1762939843067,-253.61607805,0.00038989,7]
[393710834,1762939843076,-1172.13544,0.00039,120]
[393710835,1762939843086,-880.49675202,0.00039,120]
[393710836,1762939843096,-183.38033361,0.00039,30]
[393710837,1762939843107,-2018.60847731,0.00039,120]
[393710838,1762939843117,-469.00226959,0.00039006,2]
[393710839,1762939843133,-254.73973157,0.00039006,2]
[393710840,1762939843144,-469.00226959,0.00039031,2]
[393710841,1762939843155,-254.73973157,0.00039031,2]
[393710842,1762939843167,-1000.0,0.00039033,7]
[393710844,1762939843178,-469.00226959,0.00039057,2]
[393710846,1762939843188,-254.73973157,0.00039057,2]
[393710848,1762939843198,-226.99,0.00039077,7]
[393710850,1762939843208,-500.0,0.00039077,120]
[393710851,1762939843219,-178.38352887,0.00039078,2]
[393710852,1762939843231,-1426.5394473,0.00039078,2]
[393710853,1762939843242,-162.62631696,0.00039078,2]
[393710854,1762939843252,-161.72481843,0.00039078,12]
[393710855,1762939843262,-891.9564735,0.0003908,2]
[393710856,1762939843272,-469.00226959,0.00039082,2]
[393710857,1762939843284,-254.73973157,0.00039082,2]
[393710858,1762939843294,-3826.98916322,0.00039093,4]
[393710859,1762939843303,-233.0,0.00039098,2]
[393710860,1762939843313,-184.12,0.000391,39]
[393710861,1762939843323,-190.08826373,0.00039103,120]
[393710862,1762939843332,-190.08826373,0.00039103,120]
[393710863,1762939843342,-190.08,0.00039103,120]
[393710864,1762939843352,-166.32723077,0.00039103,120]
[393710865,1762939843362,-166.32723077,0.00039103,120]
[393710866,1762939843372,-166.32723077,0.00039103,120]
[393710867,1762939843381,-166.32723077,0.00039103,120]
[393710868,1762939843391,-166.32723077,0.00039103,120]
[393710869,1762939843401,-166.32723077,0.00039103,120]
[393710870,1762939843410,-166.32723077,0.00039103,120]
[393710871,1762939843419,-181.63459051,0.00039103,120]
[393710872,1762939843429,-181.63,0.00039103,120]
[393710873,1762939843439,-169.52561781,0.00039103,120]
[393710874,1762939843449,-169.52561781,0.00039103,120]
[393710875,1762939843459,-169.52561781,0.00039103,120]
[393710876,1762939843468,-169.52561781,0.00039103,120]
[393710877,1762939843478,-469.00226959,0.00039108,2]
[393710878,1762939843487,-254.73973157,0.00039108,2]
[393710879,1762939843497,-170.32527932,0.00039108,7]
[393710880,1762939843506,-164.48213506,0.00039108,2]
[393710881,1762939843516,-150.0,0.00039121,2]
[393710882,1762939843525,-150.0,0.00039121,2]
[393710883,1762939843536,-150.0,0.00039121,2]
[393710884,1762939843546,-150.0,0.00039121,10]
[393710885,1762939843555,-150.0,0.00039121,60]
[393710886,1762939843567,-150.0,0.00039121,2]
[393710887,1762939843577,-150.0,0.00039121,2]
[393710888,1762939843587,-560.0,0.00039121,2]
[393710889,1762939843596,-500.0,0.00039121,10]
[393710890,1762939843606,-150.0,0.00039121,10]
[393710891,1762939843615,-3826.98916322,0.00039158,4]
[393710892,1762939843624,-11480.9674897,0.00039167,4]
[393710893,1762939843634,-1372.5667874,0.00039167,30]
[393710894,1762939843643,-151.0,0.00039168,30]
[393710895,1762939843652,-151.0,0.00039168,120]
[393710896,1762939843661,-151.0,0.00039168,120]
[393710897,1762939843675,-160733.544855,0.00039168,4]
[393710898,1762939843685,-172.8875364,0.00039168,2]
[393710899,1762939843694,-1286.68,0.0003917,14]
[393710900,1762939843704,-801.05755003,0.0003917,2]
[393710901,1762939843714,-577.06784667,0.00039173,5]
[393710902,1762939843724,-504.15122996,0.00039173,5]
[393710903,1762939843734,-8545.10721841,0.00039177,30]
[393710904,1762939843744,-1372.5667874,0.00039177,30]
[393710905,1762939843754,-1000.0,0.00039177,120]
[393710906,1762939843763,-1000.0,0.00039177,120]
[393710907,1762939843774,-1000.0,0.00039177,120]
[393710908,1762939843783,-1000.0,0.00039177,120]
[393710909,1762939843792,-1000.0,0.00039177,120]
[393710910,1762939843802,-1000.0,0.00039177,120]
[393710911,1762939843811,-1000.0,0.00039177,120]
[393710912,1762939843820,-1000.0,0.00039177,120]
[393710913,1762939843829,-1000.0,0.00039177,120]
[393710914,1762939843838,-1000.0,0.00039177,120]
[393710915,1762939843848,-656.01572125,0.00039177,120]
[393710916,1762939843857,-3000.0,0.00039177,2]
[393710917,1762939843867,-3000.0,0.00039177,7]
[393710918,1762939843876,-2040.84662424,0.00039177,12]
[393710919,1762939843886,-999.0,0.00039177,120]